bitfinex/quotes_BTCUSD_20241102
["timestamp","ask_amount","ask_price","bid_price","bid_amount"]
[1730548061998,0.000822,69690.0,69689.0,0.50624678]
[1730548064202,0.000822,69690.0,69689.0,0.51124678]
[1730548067225,0.000822,69690.0,69689.0,0.50624678]
[1730548067466,0.000822,69690.0,69689.0,0.51124678]
[1730548072055,0.000822,69690.0,69689.0,0.50624678]
[1730548072261,0.000822,69690.0,69689.0,0.61124678]
[1730548072476,0.000822,69690.0,69689.0,0.7203908]
[1730548072700,0.000813,69716.0,69697.0,0.62912204]
[1730548072701,0.21590223,69716.0,69697.0,0.62912204]
[1730548072915,0.21590223,69716.0,69697.0,1.05673965]
[1730548073891,0.21590223,69716.0,69697.0,1.07073965]
[1730548074095,0.21590223,69716.0,69697.0,1.05673965]
[1730548074302,0.000813,69716.0,69714.0,0.11041]
[1730548074503,0.21590223,69716.0,69714.0,0.45780927]
[1730548074674,0.000813,69716.0,69714.0,0.4921548]
[1730548076371,0.000813,69716.0,69714.0,0.5061548]
[1730548076809,0.000813,69716.0,69714.0,0.5191548]
[1730548081339,0.000813,69716.0,69714.0,0.4921548]
[1730548081589,0.000813,69716.0,69714.0,0.4971548]
[1730548081817,0.000813,69716.0,69714.0,0.5111548]
[1730548082592,0.000813,69716.0,69714.0,3.9111548]
[1730548083095,0.000813,69716.0,69714.0,3.9251548]
[1730548083650,0.000813,69716.0,69714.0,3.9271548]
[1730548085723,0.000813,69716.0,69714.0,3.9251548]
[1730548085941,0.000813,69716.0,69714.0,3.9201548]
[1730548086147,0.000813,69716.0,69714.0,3.9251548]
[1730548086380,0.000813,69716.0,69714.0,3.89080927]
[1730548089096,0.000813,69716.0,69714.0,3.88580927]
[1730548089310,0.000813,69716.0,69714.0,3.86780927]
[1730548089457,0.000813,69716.0,69714.0,3.86280927]
[1730548089691,0.000813,69716.0,69714.0,3.86780927]
[1730548093766,0.000813,69715.0,69714.0,3.86780927]
[1730548094585,0.000813,69715.0,69714.0,3.86280927]
[1730548096930,0.000813,69715.0,69714.0,3.89080927]
[1730548102259,0.000813,69716.0,69715.0,4.132595]
[1730548102465,0.000813,69716.0,69715.0,4.27105025]
[1730548102679,0.000813,69716.0,69715.0,4.37605025]
[1730548102893,0.000813,69716.0,69715.0,4.66199427]
[1730548103143,0.000813,69716.0,69715.0,4.55285025]
[1730548103357,0.000813,69716.0,69715.0,4.56685025]
[1730548103612,0.000813,69716.0,69715.0,4.67599427]
[1730548103880,0.000813,69716.0,69715.0,4.68999427]
[1730548107557,0.000813,69716.0,69715.0,4.7346955]
[1730548107844,0.000813,69716.0,69715.0,4.68999427]
[1730548108725,0.000813,69716.0,69715.0,4.67599427]
[1730548108952,0.000813,69716.0,69715.0,4.68999427]
[1730548109398,0.000813,69716.0,69715.0,4.73271601]
[1730548109630,0.000813,69716.0,69715.0,4.70471601]
[1730548109763,0.000813,69716.0,69715.0,4.73271601]
[1730548110193,0.000813,69716.0,69715.0,4.67599427]
[1730548110378,0.000813,69716.0,69715.0,4.83412]
[1730548110572,0.000813,69716.0,69715.0,4.73697587]
[1730548110802,0.000813,69716.0,69715.0,4.80122952]
[1730548111425,0.000813,69716.0,69715.0,4.73697587]
[1730548111646,0.000813,69716.0,69715.0,4.84611989]
[1730548113024,0.000813,69716.0,69715.0,4.73897587]
[1730548113234,0.000813,69716.0,69715.0,4.73697587]
[1730548115084,0.000813,69716.0,69715.0,4.95605041]
[1730548116163,0.000813,69716.0,69715.0,4.95805041]
[1730548117828,0.000813,69716.0,69715.0,4.95605041]
[1730548118888,0.000813,69716.0,69715.0,4.95805041]
[1730548119781,0.000813,69716.0,69715.0,5.11185923]
[1730548123068,0.000813,69716.0,69715.0,5.06719443]
[1730548125052,0.000813,69716.0,69715.0,5.06883643]
[1730548125257,0.000813,69716.0,69715.0,4.95769241]
[1730548125471,0.000813,69716.0,69715.0,4.89008105]
[1730548125695,0.000813,69716.0,69715.0,4.86708105]
[1730548126598,0.000813,69716.0,69715.0,4.84565523]
[1730548127026,0.000813,69716.0,69715.0,4.86865523]
[1730548127659,0.000813,69716.0,69715.0,4.78289241]
[1730548127911,0.000813,69716.0,69715.0,4.75489241]
[1730548128100,0.000813,69716.0,69715.0,4.75989241]
[1730548128538,0.000813,69716.0,69715.0,4.66609727]
[1730548128811,0.000813,69716.0,69715.0,4.60176679]
[1730548129254,0.000813,69716.0,69715.0,4.66609727]
[1730548129689,0.000813,69716.0,69715.0,4.60176679]
[1730548131665,0.000813,69716.0,69715.0,4.64465701]
[1730548132985,0.000813,69716.0,69715.0,4.63465701]
[1730548133204,0.000813,69716.0,69715.0,4.63965701]
[1730548134956,0.000813,69716.0,69715.0,4.63465701]
[1730548135176,0.000813,69716.0,69715.0,4.63965701]
[1730548137604,0.000813,69716.0,69715.0,4.59676679]
[1730548141088,0.000813,69716.0,69715.0,4.59176679]
[1730548141295,0.000813,69716.0,69715.0,4.59676679]
[1730548143925,0.000813,69716.0,69715.0,4.59176679]
[1730548144218,0.000813,69716.0,69715.0,4.63968041]
[1730548144441,0.01425112,69716.0,69715.0,4.39135879]
[1730548144678,0.18475112,69716.0,69715.0,4.39135879]
[1730548145359,0.18475112,69716.0,69715.0,4.37735879]
[1730548145585,0.18475112,69716.0,69715.0,4.14428425]
[1730548145798,0.18475112,69716.0,69715.0,4.17228425]
[1730548146490,0.01425112,69716.0,69715.0,4.38183627]
[1730548146730,0.000813,69716.0,69715.0,4.38183627]
[1730548148043,0.000813,69716.0,69715.0,4.36783627]
[1730548148268,0.000813,69716.0,69715.0,4.35383627]
[1730548148483,0.000813,69716.0,69715.0,4.36783627]
[1730548148696,0.000813,69716.0,69715.0,4.38183627]
[1730548148910,0.000813,69716.0,69715.0,4.36783627]
[1730548149372,0.000813,69716.0,69715.0,4.38183627]
[1730548152916,0.01424824,69716.0,69715.0,4.38183627]
[1730548154280,0.000813,69716.0,69715.0,4.38183627]
[1730548154518,0.01425112,69716.0,69715.0,4.38183627]
[1730548156339,0.01425112,69716.0,69715.0,4.27269225]
[1730548157815,0.01425371,69716.0,69715.0,4.27269225]
[1730548162573,0.01425371,69716.0,69715.0,4.17228425]
[1730548162574,0.28466071,69716.0,69715.0,4.17228425]
[1730548163379,0.28466071,69716.0,69715.0,4.16728425]
[1730548165514,0.28466071,69716.0,69715.0,4.13928425]
[1730548165720,0.28466071,69716.0,69715.0,4.15328425]
[1730548165924,0.28466071,69716.0,69715.0,4.16728425]
[1730548166137,0.28466071,69716.0,69715.0,4.15328425]
[1730548166346,0.28466071,69716.0,69715.0,4.16528425]
[1730548167289,0.28466071,69716.0,69715.0,4.15128425]
[1730548167538,0.28466071,69716.0,69715.0,4.16128425]
[1730548168567,0.3061471,69716.0,69715.0,4.16128425]
[1730548169132,0.27122,69716.0,69715.0,4.16128425]
[1730548169344,0.30613619,69716.0,69715.0,4.16128425]
[1730548169776,0.30613213,69716.0,69715.0,4.022829]
[1730548171925,0.27122,69716.0,69715.0,4.022829]
[1730548172165,0.30612719,69716.0,69715.0,4.022829]
[1730548172372,0.31955272,69716.0,69715.0,4.022829]
[1730548172785,0.31955192,69716.0,69715.0,4.022829]
[1730548173203,0.27122,69716.0,69715.0,4.022829]
[1730548173615,0.31955447,69716.0,69715.0,4.022829]
[1730548175145,0.39378983,69716.0,69715.0,4.022829]
[1730548175362,0.42869694,69716.0,69715.0,4.022829]
[1730548177063,0.42868747,69716.0,69715.0,4.022829]
[1730548178621,0.46871789,69716.0,69715.0,4.022829]
[1730548179067,0.51165795,69716.0,69715.0,4.022829]
[1730548179284,0.46871789,69716.0,69715.0,4.022829]
[1730548181043,0.43381439,69716.0,69715.0,4.022829]
[1730548181257,0.46870627,69716.0,69715.0,4.022829]
[1730548181677,0.46870627,69716.0,69715.0,4.012829]
[1730548181886,0.46870627,69716.0,69715.0,4.020829]
[1730548182310,0.46870627,69716.0,69715.0,4.012829]
[1730548182717,0.46870627,69716.0,69715.0,4.019829]
[1730548183342,0.46870627,69716.0,69715.0,4.007829]
[1730548183552,0.46870627,69716.0,69715.0,4.017829]
[1730548183975,0.46870627,69716.0,69715.0,4.000829]
[1730548184191,0.47170627,69716.0,69715.0,4.000829]
[1730548184408,0.47570246,69716.0,69715.0,4.000829]
[1730548188003,0.38736402,69716.0,69715.0,4.000829]
[1730548188252,0.4491053,69716.0,69715.0,4.000829]
[1730548191854,0.44913911,69716.0,69715.0,4.000829]
[1730548193011,0.45113911,69716.0,69715.0,4.000829]
[1730548193233,0.45613911,69716.0,69715.0,4.000829]
[1730548193453,0.44070771,69716.0,69715.0,4.000829]
[1730548193678,0.52828861,69716.0,69715.0,4.000829]
[1730548193930,0.46391294,69716.0,69715.0,4.000829]
[1730548194148,0.61872485,69716.0,69715.0,4.000829]
[1730548194375,0.46591294,69716.0,69715.0,4.000829]
[1730548194819,0.52828916,69716.0,69715.0,4.000829]
[1730548195042,0.70252732,69716.0,69715.0,4.000829]
[1730548195571,0.66760568,69716.0,69715.0,4.000829]
[1730548195774,0.6891203,69716.0,69715.0,4.000829]
[1730548196031,0.69356909,69716.0,69715.0,4.000829]
[1730548197646,0.60773487,69716.0,69715.0,4.000829]
[1730548199479,0.60973487,69716.0,69715.0,4.000829]
[1730548199935,0.60773487,69716.0,69715.0,4.000829]
[1730548200888,0.71502765,69716.0,69715.0,4.000829]
[1730548202206,0.70158924,69716.0,69715.0,4.000829]
[1730548202419,0.71502565,69716.0,69715.0,4.000829]
[1730548202820,0.60773287,69716.0,69715.0,4.000829]
[1730548203010,0.81502565,69716.0,69715.0,4.000829]
[1730548205254,0.70773287,69716.0,69715.0,4.000829]
[1730548205486,0.70793161,69716.0,69715.0,4.000829]
[1730548205694,0.60057885,69716.0,69715.0,4.000829]
[1730548205924,0.70794233,69716.0,69715.0,4.000829]
[1730548206133,0.60058972,69716.0,69715.0,4.000829]
[1730548206371,0.70794233,69716.0,69715.0,4.000829]
[1730548206584,0.68648395,69716.0,69715.0,4.000829]
[1730548206794,0.60058972,69716.0,69715.0,4.000829]
[1730548207193,0.70794233,69716.0,69715.0,4.000829]
[1730548208256,0.60079422,69716.0,69715.0,4.000829]
[1730548209709,0.73927152,69716.0,69715.0,4.000829]
[1730548209859,0.73928374,69716.0,69715.0,4.000829]
[1730548210270,0.60080644,69716.0,69715.0,4.000829]
[1730548213947,0.60081043,69716.0,69715.0,4.000829]
[1730548214379,0.56584868,69716.0,69715.0,4.000829]
[1730548214606,0.60081043,69716.0,69715.0,4.000829]
[1730548217403,0.60155115,69716.0,69715.0,4.000829]
[1730548217609,0.60155979,69716.0,69715.0,4.000829]
[1730548217840,0.5665894,69716.0,69715.0,4.000829]
[1730548218049,0.6015598,69716.0,69715.0,4.000829]
[1730548219612,0.6035598,69716.0,69715.0,4.000829]
[1730548219836,0.65473244,69716.0,69715.0,4.000829]
[1730548220272,0.56423244,69716.0,69715.0,4.000829]
[1730548221015,0.5110598,69716.0,69715.0,4.000829]
[1730548221252,0.39691578,69716.0,69715.0,4.000829]
[1730548221684,0.51790399,69716.0,69715.0,4.000829]
[1730548221899,0.20822,69716.0,69715.0,4.000829]
[1730548222125,0.41125548,69716.0,69715.0,4.000829]
[1730548222564,0.51878904,69716.0,69715.0,4.000829]
[1730548222780,0.31125548,69716.0,69715.0,4.000829]
[1730548223417,0.41878904,69716.0,69715.0,4.000829]
[1730548225298,0.31125548,69716.0,69715.0,4.000829]
[1730548225523,0.41878904,69716.0,69715.0,4.000829]
[1730548225950,0.41878338,69716.0,69715.0,4.000829]
[1730548226397,0.38380573,69716.0,69715.0,4.000829]
[1730548226628,0.41893615,69716.0,69715.0,4.000829]
[1730548229852,0.38397113,69716.0,69715.0,4.000829]
[1730548230094,0.418928,69716.0,69715.0,4.000829]
[1730548230986,0.31137301,69716.0,69715.0,4.000829]
[1730548231434,0.418928,69716.0,69715.0,4.000829]
[1730548232529,0.52807202,69716.0,69715.0,4.000829]
[1730548233711,0.49311515,69716.0,69715.0,4.000829]
[1730548233946,0.52807185,69716.0,69715.0,4.000829]
[1730548235313,0.4796702,69716.0,69715.0,4.000829]
[1730548235948,0.49311583,69716.0,69715.0,4.000829]
[1730548235951,0.42051947,69716.0,69715.0,4.000829]
[1730548236188,0.52820259,69716.0,69715.0,4.000829]
[1730548236419,0.4206545,69716.0,69715.0,4.000829]
[1730548236911,0.5591318,69716.0,69715.0,4.000829]
[1730548238049,0.55913283,69716.0,69715.0,4.000829]
[1730548238287,0.54568885,69716.0,69715.0,4.000829]
[1730548238508,0.55913551,69716.0,69715.0,4.000829]
[1730548240562,0.54569172,69716.0,69715.0,4.000829]
[1730548240864,0.55913948,69716.0,69715.0,4.000829]
[1730548242949,0.56357122,69716.0,69715.0,4.000829]
[1730548243193,0.56857122,69716.0,69715.0,4.000829]
[1730548243484,0.57057122,69716.0,69715.0,4.000829]
[1730548244151,0.56857122,69716.0,69715.0,4.000829]
[1730548244627,0.56836209,69716.0,69715.0,4.000829]
[1730548247639,0.56836488,69716.0,69715.0,4.000829]
[1730548249717,0.51995015,69716.0,69715.0,4.000829]
[1730548249966,0.56837462,69716.0,69715.0,4.000829]
[1730548251131,0.7974535,69716.0,69715.0,4.000829]
[1730548253415,0.66837462,69716.0,69715.0,4.000829]
[1730548253626,0.79770455,69716.0,69715.0,4.000829]
[1730548255145,0.79770455,69716.0,69715.0,3.95595231]
[1730548256004,0.78425331,69716.0,69715.0,3.95595231]
[1730548257134,0.7842539,69716.0,69715.0,3.95595231]
[1730548259555,0.7842539,69716.0,69715.0,3.92364095]
[1730548259746,0.6551475,69716.0,69715.0,3.92364095]
[1730548260243,0.65506934,69716.0,69715.0,3.92364095]
[1730548260660,0.65706934,69716.0,69715.0,3.92364095]
[1730548261299,0.62209552,69716.0,69715.0,3.92364095]
[1730548261525,0.65707268,69716.0,69715.0,3.92364095]
[1730548262481,0.65507268,69716.0,69715.0,3.92364095]
[1730548262911,0.50025022,69716.0,69715.0,3.92364095]
[1730548263570,0.50025538,69716.0,69715.0,3.92364095]
[1730548263859,0.65508968,69716.0,69715.0,3.92364095]
[1730548264076,0.66854442,69716.0,69715.0,3.92364095]
[1730548264321,0.69831831,69716.0,69715.0,3.92364095]
[1730548264927,0.70031831,69716.0,69715.0,3.92364095]
[1730548265167,0.86822892,69716.0,69715.0,3.87876143]
[1730548265375,1.04632892,69716.0,69715.0,3.87876143]
[1730548265590,1.05632892,69716.0,69715.0,3.88076143]
[1730548265807,1.05332892,69716.0,69715.0,3.87976143]
[1730548266022,1.03287356,69716.0,69715.0,3.87876143]
[1730548266238,1.03587356,69716.0,69715.0,3.87976143]
[1730548266457,1.04287356,69716.0,69715.0,3.88076143]
[1730548267167,1.04286511,69716.0,69715.0,3.88076143]
[1730548270847,1.04284143,69716.0,69715.0,3.88076143]
[1730548271063,0.88800713,69716.0,69715.0,3.88076143]
[1730548273990,1.18726208,69716.0,69715.0,3.88076143]
[1730548274461,1.40306248,69716.0,69715.0,3.88076143]
[1730548274682,1.25793962,69716.0,69715.0,3.84844527]
[1730548275320,1.40303441,69716.0,69715.0,3.84844527]
[1730548275969,1.32323441,69716.0,69715.0,3.84844527]
[1730548276442,0.40030228,69716.0,69715.0,3.84844527]
[1730548276661,0.5144463,69716.0,69715.0,3.84844527]
[1730548278160,0.5094463,69716.0,69715.0,3.84844527]
[1730548278394,0.47950716,69716.0,69715.0,3.84844527]
[1730548278608,0.51443859,69716.0,69715.0,3.84844527]
[1730548279019,0.50943859,69716.0,69715.0,3.84844527]
[1730548279228,0.51443859,69716.0,69715.0,3.84844527]
[1730548282348,0.51443913,69716.0,69715.0,3.84844527]
[1730548284703,0.51529395,69716.0,69715.0,3.84844527]
[1730548285939,0.48036198,69716.0,69715.0,3.84844527]
[1730548286152,0.51529451,69716.0,69715.0,3.84844527]
[1730548286366,0.48036198,69716.0,69715.0,3.84844527]
[1730548286567,0.51529434,69716.0,69715.0,3.84844527]
[1730548288671,0.51529415,69716.0,69715.0,3.84844527]
[1730548289639,0.49379743,69716.0,69715.0,3.84844527]
[1730548289843,0.51529429,69716.0,69715.0,3.84844527]
[1730548290974,0.65377159,69716.0,69715.0,3.84844527]
[1730548291627,0.65391625,69716.0,69715.0,3.84844527]
[1730548294945,0.65391533,69716.0,69715.0,3.84844527]
[1730548297325,0.61898394,69716.0,69715.0,3.84844527]
[1730548297544,0.65391634,69716.0,69715.0,3.84844527]
[1730548299311,0.66735319,69716.0,69715.0,3.84844527]
[1730548300605,0.65391634,69716.0,69715.0,3.84844527]
[1730548300808,0.66736607,69716.0,69715.0,3.84844527]
[1730548303560,0.66936607,69716.0,69715.0,3.80356806]
[1730548304229,0.65592659,69716.0,69715.0,3.80356806]
[1730548305106,0.75482659,69716.0,69715.0,3.80356806]
[1730548305326,0.75482659,69716.0,69715.0,3.77125583]
[1730548305546,0.79802258,69716.0,69715.0,3.77125583]
[1730548306644,1.06862185,69716.0,69715.0,3.77125583]
[1730548306918,0.95947783,69716.0,69715.0,3.77125583]
[1730548307135,1.1782218,69716.0,69715.0,3.77125583]
[1730548308280,1.1712218,69716.0,69715.0,3.77025583]
[1730548308467,1.1682218,69716.0,69715.0,3.76925583]
[1730548308676,1.1752218,69716.0,69715.0,3.77025583]
[1730548308891,1.1892218,69716.0,69715.0,3.77125583]
[1730548309754,1.1752218,69716.0,69715.0,3.77025583]
[1730548310166,1.1682218,69716.0,69715.0,3.76925583]
[1730548310376,1.1822218,69716.0,69715.0,3.77025583]
[1730548310590,1.1962218,69716.0,69715.0,3.77025583]
[1730548310866,1.30536582,69716.0,69715.0,3.71287983]
[1730548311087,1.29136582,69716.0,69715.0,3.62581583]
[1730548311289,1.30536582,69716.0,69715.0,3.62581583]
[1730548311531,1.27042317,69716.0,69715.0,3.62581583]
[1730548311760,1.27042317,69716.0,69715.0,3.59712783]
[1730548311761,1.30476313,69716.0,69715.0,3.59712783]
[1730548311994,1.20203083,69716.0,69715.0,3.46567696]
[1730548312271,1.1945832,69716.0,69715.0,2.94279095]
[1730548312475,1.15088885,69716.0,69715.0,2.94279095]
[1730548312692,1.16488885,69716.0,69715.0,2.91510295]
[1730548312914,1.16488885,69716.0,69715.0,2.79935095]
[1730548313146,1.17888885,69716.0,69715.0,2.80035095]
[1730548313423,1.20836791,69716.0,69715.0,2.6147368]
[1730548313660,1.13361004,69716.0,69715.0,2.5860488]
[1730548314124,1.13361004,69716.0,69715.0,2.4702968]
[1730548314125,1.09161004,69716.0,69715.0,2.4702968]
[1730548314327,1.10561004,69716.0,69715.0,2.4712968]
[1730548314584,1.11961004,69716.0,69715.0,2.4712968]
[1730548314800,1.38021037,69716.0,69715.0,2.3278568]
[1730548315018,1.36618923,69716.0,69715.0,2.3278568]
[1730548315236,1.38018923,69716.0,69715.0,2.3278568]
[1730548315451,1.36618923,69716.0,69715.0,2.3268568]
[1730548315668,1.36618923,69716.0,69715.0,2.2981688]
[1730548315885,1.38018923,69716.0,69715.0,2.2417928]
[1730548316157,1.38018923,69716.0,69715.0,2.1834168]
[1730548316320,1.38018923,69716.0,69715.0,2.1844168]
[1730548316986,1.54518923,69716.0,69715.0,2.1280408]
[1730548317198,1.54518923,69716.0,69715.0,2.0706648]
[1730548317588,1.54518923,69716.0,69715.0,2.0419768]
[1730548317922,1.54518923,69716.0,69715.0,2.0132888]
[1730548318155,1.54518923,69716.0,69715.0,1.8985368]
[1730548318605,1.54516351,69716.0,69715.0,1.8985368]
[1730548318820,1.54516351,69716.0,69715.0,1.8698488]
[1730548321151,1.51025549,69716.0,69715.0,1.8411608]
[1730548321364,1.51025549,69716.0,69715.0,1.8124728]
[1730548321607,1.54515753,69716.0,69715.0,1.8124728]
[1730548321805,1.54515753,69716.0,69715.0,1.7837848]
[1730548323984,1.43601351,69716.0,69715.0,1.7837848]
[1730548324873,1.54515753,69716.0,69715.0,1.7837848]
[1730548325109,1.54515753,69716.0,69715.0,1.36519372]
[1730548325319,1.50064857,69716.0,69715.0,1.36519372]
[1730548325526,1.54377879,69716.0,69715.0,1.36519372]
[1730548325730,1.54377879,69716.0,69715.0,1.33650572]
[1730548326612,1.54377879,69716.0,69715.0,1.30781772]
[1730548326857,1.54377879,69716.0,69715.0,1.27912972]
[1730548327271,1.54377879,69716.0,69715.0,1.16437772]
[1730548328417,1.54200681,69716.0,69715.0,1.16437772]
[1730548328632,1.50710477,69716.0,69715.0,1.07831372]
[1730548328873,1.54200018,69716.0,69715.0,1.02093772]
[1730548329102,1.54200021,69716.0,69715.0,1.02093772]
[1730548330624,1.56163389,69716.0,69715.0,1.02093772]
[1730548331520,1.27001408,69716.0,69715.0,1.02093772]
[1730548331938,1.14123638,69716.0,69715.0,1.02093772]
[1730548332369,1.10634094,69716.0,69715.0,1.02093772]
[1730548332632,1.14124524,69716.0,69715.0,1.02093772]
[1730548333077,1.14151837,69716.0,69715.0,1.02093772]
[1730548333515,1.25066239,69716.0,69715.0,0.93487372]
[1730548333744,1.18658189,69716.0,69715.0,0.93487372]
[1730548335105,1.35733915,69716.0,69715.0,0.93487372]
[1730548336019,1.46648317,69716.0,69715.0,0.93487372]
[1730548336499,1.46648317,69716.0,69715.0,0.90255216]
[1730548336723,1.4450036,69716.0,69715.0,0.90255216]
[1730548337585,1.44483843,69716.0,69715.0,0.90255216]
[1730548338054,1.33569441,69716.0,69715.0,0.90255216]
[1730548338268,1.44483843,69716.0,69715.0,0.90255216]
[1730548339148,1.33569441,69716.0,69715.0,0.90255216]
[1730548339813,1.35721042,69716.0,69715.0,0.90255216]
[1730548342083,1.35746719,69716.0,69715.0,0.90255216]
[1730548342518,1.46661121,69716.0,69715.0,0.90255216]
[1730548342745,1.55536908,69716.0,69715.0,0.67304816]
[1730548343897,1.55536908,69716.0,69715.0,0.48395143]
[1730548344134,0.230427,69702.0,69697.0,0.0809]
[1730548344340,0.66721687,69702.0,69697.0,0.0809]
[1730548344793,0.007,69699.0,69697.0,0.0809]
[1730548345024,0.66722087,69699.0,69697.0,0.0809]
[1730548345509,0.55807685,69699.0,69698.0,0.175842]
[1730548346221,0.71660466,69699.0,69698.0,0.177842]
[1730548346438,0.7167112,69699.0,69698.0,0.177842]
[1730548347144,0.68737792,69699.0,69698.0,0.177842]
[1730548347811,0.6919643,69699.0,69698.0,0.177842]
[1730548349133,0.79937169,69699.0,69698.0,0.177842]
[1730548349887,0.79937169,69699.0,69698.0,0.084542]
[1730548350303,0.6919643,69699.0,69698.0,0.084542]
[1730548350511,0.6919643,69699.0,69698.0,0.003642]
[1730548350512,0.82271367,69699.0,69698.0,0.003642]
[1730548350958,0.82287784,69699.0,69698.0,0.003642]
[1730548351345,0.81287784,69699.0,69698.0,0.002642]
[1730548351562,0.80287784,69699.0,69698.0,0.001642]
[1730548351768,0.83087784,69699.0,69698.0,0.001642]
[1730548352204,0.81687784,69699.0,69698.0,0.001642]
[1730548352615,0.83087784,69699.0,69698.0,0.001642]
[1730548353059,0.83087354,69699.0,69698.0,0.001642]
[1730548354012,0.86658619,69699.0,69698.0,0.001642]
[1730548354229,0.33958302,69694.0,69693.0,0.04601793]
[1730548354442,0.6675403,69694.0,69693.0,0.04601793]
[1730548355462,0.68161732,69694.0,69693.0,0.04601793]
[1730548355659,0.69561732,69694.0,69693.0,0.04601793]
[1730548356556,0.66063586,69694.0,69693.0,0.04601793]
[1730548356697,0.83409187,69694.0,69693.0,0.04601793]
[1730548356899,0.58447055,69694.0,69693.0,0.04601793]
[1730548357116,0.4230153,69694.0,69693.0,0.13951793]
[1730548361345,0.37403659,69694.0,69693.0,0.13951793]
[1730548361829,0.49718061,69694.0,69693.0,0.04601793]
[1730548362047,0.6336005,69694.0,69693.0,0.04766193]
[1730548362272,0.66857544,69694.0,69693.0,0.04766193]
[1730548362505,0.79764196,69694.0,69693.0,0.04766193]
[1730548363159,0.79964196,69694.0,69693.0,0.04766193]
[1730548364081,0.71381264,69694.0,69693.0,0.04766193]
[1730548364295,0.71388303,69694.0,69693.0,0.04766193]
[1730548365377,0.71188303,69694.0,69693.0,0.04766193]
[1730548366472,0.71188303,69694.0,69693.0,0.001644]
[1730548366473,0.98456632,69694.0,69693.0,0.001644]
[1730548366696,0.8754223,69694.0,69693.0,0.001644]
[1730548366908,1.02070638,69694.0,69693.0,0.001644]
[1730548368713,0.8754223,69694.0,69693.0,0.001644]
[1730548368966,0.87506812,69694.0,69693.0,0.001644]
[1730548369218,0.87506812,69694.0,69685.0,0.29468923]
[1730548369219,0.20045,69686.0,69685.0,0.29468923]
[1730548369443,0.38982895,69686.0,69685.0,0.29468923]
[1730548369885,0.38982895,69686.0,69685.0,0.0796]
[1730548370108,0.38976513,69686.0,69685.0,0.0796]
[1730548370317,0.354784,69686.0,69685.0,0.0796]
[1730548370540,0.47422908,69686.0,69685.0,0.0796]
[1730548371201,0.60336631,69686.0,69685.0,0.0796]
[1730548371893,0.61036631,69686.0,69685.0,0.0796]
[1730548372106,0.62382213,69686.0,69685.0,0.0796]
[1730548372796,0.48122908,69686.0,69685.0,0.0796]
[1730548373013,0.49468592,69686.0,69685.0,0.0796]
[1730548373438,0.49490446,69686.0,69685.0,0.0796]
[1730548374091,0.49490592,69686.0,69685.0,0.081242]
[1730548376093,0.49990592,69686.0,69685.0,0.081242]
[1730548377416,0.49990592,69686.0,69685.0,0.001642]
[1730548377628,0.49490592,69686.0,69685.0,0.001642]
[1730548377854,0.50190592,69686.0,69685.0,0.001642]
[1730548378075,0.50190448,69686.0,69685.0,0.001642]
[1730548378291,0.49990448,69686.0,69685.0,0.001642]
[1730548379141,0.100457,69681.0,69680.0,0.1777]
[1730548379421,0.14889803,69681.0,69680.0,0.1777]
[1730548379644,0.30345057,69681.0,69680.0,0.1777]
[1730548380541,0.30845057,69681.0,69680.0,0.1777]
[1730548380981,0.30844929,69681.0,69680.0,0.1777]
[1730548381197,0.44939205,69681.0,69680.0,0.1777]
[1730548381411,0.44739205,69681.0,69680.0,0.1777]
[1730548381854,0.44539205,69681.0,69680.0,0.1777]
[1730548382076,0.45039205,69681.0,69680.0,0.1777]
[1730548382545,0.45739205,69681.0,69680.0,0.1777]
[1730548382731,0.6188473,69681.0,69680.0,0.0796]
[1730548382959,0.6168473,69681.0,69680.0,0.0796]
[1730548383437,0.6033925,69681.0,69680.0,0.0796]
[1730548383642,0.61684699,69681.0,69680.0,0.0796]
[1730548383876,0.60384699,69681.0,69680.0,0.0796]
[1730548384088,0.61284699,69681.0,69680.0,0.0796]
[1730548384322,0.56582899,69681.0,69680.0,0.0796]
[1730548384973,0.72277082,69681.0,69680.0,0.0796]
[1730548385407,0.72277082,69681.0,69680.0,0.081244]
[1730548385631,0.72477082,69681.0,69680.0,0.001644]
[1730548385853,0.72777082,69681.0,69680.0,0.001644]
[1730548386092,0.20246,69679.0,69678.0,0.001644]
[1730548386297,0.31160402,69679.0,69678.0,0.001644]
[1730548386542,0.34658806,69679.0,69678.0,0.001644]
[1730548386741,0.38804448,69679.0,69678.0,0.001644]
[1730548387235,0.38604448,69679.0,69678.0,0.001644]
[1730548387440,0.52141093,69679.0,69678.0,0.001644]
[1730548387879,0.51840481,69679.0,69678.0,0.001644]
[1730548388100,0.66186006,69679.0,69678.0,0.001644]
[1730548388942,0.70510761,69679.0,69678.0,0.001644]
[1730548389156,0.70510761,69679.0,69677.0,0.00144203]
[1730548389157,0.60264761,69679.0,69677.0,0.00144203]
[1730548389370,0.36311849,69678.0,69677.0,0.00144203]
[1730548389991,0.36811849,69678.0,69677.0,0.00144203]
[1730548390651,0.36811112,69678.0,69677.0,0.00144203]
[1730548390869,0.52956637,69678.0,69677.0,0.00144203]
[1730548391078,0.54356637,69678.0,69677.0,0.00144203]
[1730548391736,0.82928207,69678.0,69677.0,0.00144203]
[1730548392150,0.84328207,69678.0,69677.0,0.00144203]
[1730548392578,0.82928207,69678.0,69677.0,0.00144203]
[1730548392785,0.82428207,69678.0,69677.0,0.00144203]
[1730548393011,0.84328207,69678.0,69677.0,0.00144203]
[1730548394613,0.8083082,69678.0,69677.0,0.00144203]
[1730548394802,0.83126382,69678.0,69677.0,0.00144203]
[1730548395003,0.83826382,69678.0,69677.0,0.00144203]
[1730548395207,0.84326382,69678.0,69677.0,0.00144203]
[1730548396065,0.82926382,69678.0,69677.0,0.00144203]
[1730548396301,0.81726382,69678.0,69677.0,0.00144203]
[1730548396553,0.84526382,69678.0,69677.0,0.00144203]
[1730548396768,0.92150031,69678.0,69677.0,0.00144203]
[1730548397006,1.03660784,69678.0,69677.0,0.00144203]
[1730548397253,1.17150031,69678.0,69677.0,0.00144203]
[1730548397475,1.35995368,69678.0,69677.0,0.00144203]
[1730548397703,1.35995368,69678.0,69665.0,0.0815]
[1730548397704,0.21162302,69666.0,69665.0,0.0815]
[1730548397929,0.49728557,69666.0,69665.0,0.0815]
[1730548398146,0.10248,69665.0,69663.0,0.091]
[1730548398375,0.330967,69663.0,69661.0,0.0815]
[1730548398614,0.51464416,69662.0,69661.0,0.0815]
[1730548399256,0.100501,69651.0,69645.0,0.001624]
[1730548399491,0.13546159,69651.0,69645.0,0.001624]
[1730548399734,0.17843516,69651.0,69645.0,0.001624]
[1730548399954,0.17843516,69651.0,69650.0,0.174142]
[1730548400182,0.13546159,69651.0,69650.0,0.174142]